bitfinex/quotes_BTCUSD_20250219
["timestamp","ask_amount","ask_price","bid_price","bid_amount"]
[1739998024882,0.0004255,96479.0,96478.0,0.001]
[1739998025238,0.155478,96477.0,96472.0,0.000851]
[1739998025436,0.0004255,96479.0,96472.0,0.001851]
[1739998025752,0.155477,96478.0,96472.0,0.000851]
[1739998026450,0.0004255,96479.0,96472.0,0.000851]
[1739998026660,0.155483,96473.0,96472.0,0.001851]
[1739998027676,0.899499,96473.0,96472.0,0.001851]
[1739998027894,0.899499,96473.0,96472.0,0.000851]
[1739998027895,1.177407,96473.0,96472.0,0.000851]
[1739998028432,1.19365754,96473.0,96472.0,0.001851]
[1739998028645,1.26845754,96473.0,96472.0,0.000851]
[1739998031245,1.27345754,96473.0,96472.0,0.000851]
[1739998031607,1.26845754,96473.0,96472.0,0.000851]
[1739998031821,1.27545754,96473.0,96472.0,0.000851]
[1739998032486,0.41053354,96473.0,96472.0,0.000851]
[1739998032873,3.91341854,96473.0,96472.0,0.000851]
[1739998033075,4.01592219,96473.0,96472.0,0.000851]
[1739998033685,4.26504115,96473.0,96472.0,0.000851]
[1739998034189,4.1625375,96473.0,96472.0,0.000851]
[1739998034844,4.1485375,96473.0,96472.0,0.000851]
[1739998035265,4.1545375,96473.0,96472.0,0.000851]
[1739998035466,4.1485375,96473.0,96472.0,0.000851]
[1739998035691,4.1545375,96473.0,96472.0,0.000851]
[1739998036075,4.1485375,96473.0,96472.0,0.000851]
[1739998036324,4.1545375,96473.0,96472.0,0.000851]
[1739998036534,1.61039896,96473.0,96472.0,0.000851]
[1739998037556,1.71290261,96473.0,96472.0,0.000851]
[1739998039016,1.61039896,96473.0,96472.0,0.000851]
[1739998039566,1.6266508,96473.0,96472.0,0.000851]
[1739998042167,0.16072893,96461.0,96460.0,0.001]
[1739998042370,0.313985,96461.0,96455.0,0.00128316]
[1739998042577,0.155511,96456.0,96455.0,0.00128316]
[1739998042705,0.282812,96456.0,96455.0,0.00128316]
[1739998043500,0.282812,96456.0,96455.0,0.00228316]
[1739998044740,0.282812,96456.0,96455.0,0.00128316]
[1739998044943,0.30098714,96456.0,96455.0,0.00128316]
[1739998045089,0.30698714,96456.0,96455.0,0.00228316]
[1739998045283,0.30798714,96456.0,96455.0,0.00228316]
[1739998045489,0.15247614,96456.0,96455.0,0.00228316]
[1739998045715,0.02517514,96456.0,96455.0,0.08088316]
[1739998045869,0.18068614,96456.0,96455.0,0.08088316]
[1739998046074,0.30836414,96456.0,96455.0,0.08088316]
[1739998046269,0.18068614,96456.0,96455.0,0.08088316]
[1739998046472,0.02517514,96456.0,96455.0,0.23639516]
[1739998046689,0.007,96456.0,96455.0,0.09542401]
[1739998046897,0.007,96456.0,96455.0,0.25093601]
[1739998047132,0.007,96456.0,96455.0,0.33401362]
[1739998047349,0.007,96456.0,96455.0,0.37901362]
[1739998047783,0.001,96456.0,96455.0,0.37801362]
[1739998048403,0.001,96456.0,96455.0,0.37901362]
[1739998048604,0.01625048,96462.0,96457.0,0.0825]
[1739998048845,0.01625048,96462.0,96461.0,0.17004385]
[1739998049048,0.01625048,96462.0,96461.0,0.25254385]
[1739998049666,0.01725048,96462.0,96461.0,0.25254385]
[1739998050050,0.01725048,96462.0,96461.0,0.09704085]
[1739998050224,0.01725048,96462.0,96461.0,0.0825]
[1739998050577,0.17275148,96462.0,96461.0,0.0825]
[1739998050875,0.17175148,96462.0,96461.0,0.0825]
[1739998051051,0.17175148,96462.0,96461.0,0.0829255]
[1739998051251,0.01725048,96462.0,96461.0,0.0839255]
[1739998051463,0.01625048,96462.0,96461.0,0.0829255]
[1739998051638,0.01625048,96462.0,96461.0,0.0849255]
[1739998051838,0.01625048,96462.0,96461.0,0.0859255]
[1739998052267,0.01625048,96462.0,96461.0,0.0839255]
[1739998052462,0.17175148,96462.0,96461.0,0.0839255]
[1739998052664,0.01625048,96462.0,96461.0,0.0839255]
[1739998052867,0.17175148,96462.0,96461.0,0.0839255]
[1739998053329,0.25300644,96462.0,96461.0,0.0839255]
[1739998053548,0.17175148,96462.0,96461.0,0.0839255]
[1739998053949,0.01881608,96468.0,96461.0,0.0829255]
[1739998054150,0.155501,96463.0,96461.0,0.0829255]
[1739998054396,0.1963,96485.0,96461.0,0.0839255]
[1739998054574,0.155501,96462.0,96461.0,0.0839255]
[1739998054767,0.156501,96462.0,96461.0,0.0839255]
[1739998055251,0.155501,96462.0,96461.0,0.0829255]
[1739998055464,0.155501,96462.0,96461.0,0.0849255]
[1739998055828,0.02039631,96478.0,96461.0,0.0849255]
[1739998055829,0.155494,96467.0,96461.0,0.0839255]
[1739998056074,0.01880393,96469.0,96461.0,0.0839255]
[1739998056260,0.155492,96468.0,96461.0,0.0849255]
[1739998056591,0.01803247,96469.0,96461.0,0.0839255]
[1739998056825,0.155482,96475.0,96464.0,0.155498]
[1739998057179,0.0162496,96467.0,96466.0,0.09054085]
[1739998057705,0.0162496,96467.0,96466.0,0.24603585]
[1739998057882,0.0162496,96467.0,96466.0,0.24403585]
[1739998058769,0.0192496,96467.0,96466.0,0.24403585]
[1739998058990,0.0192496,96467.0,96466.0,0.24503585]
[1739998059192,0.01867707,96479.0,96478.0,0.204575]
[1739998059400,0.01867707,96479.0,96478.0,0.286475]
[1739998059547,0.01867707,96479.0,96478.0,0.283475]
[1739998059959,0.0004255,96479.0,96478.0,0.29801585]
[1739998061135,0.0004255,96479.0,96478.0,0.30001585]
[1739998061364,0.0004255,96479.0,96478.0,0.29801585]
[1739998062270,0.0014255,96479.0,96478.0,0.30001585]
[1739998062480,0.0014255,96479.0,96478.0,0.30501585]
[1739998063526,0.0004255,96479.0,96478.0,0.30301585]
[1739998063707,0.0014255,96479.0,96478.0,0.30501585]
[1739998063903,0.0014255,96479.0,96478.0,0.30001585]
[1739998064319,0.03418381,96516.0,96478.0,0.14]
[1739998064495,0.155456,96491.0,96479.0,0.01454085]
[1739998064697,0.207249,96502.0,96479.0,0.01454085]
[1739998064899,0.15,96515.0,96483.0,0.01454085]
[1739998065122,0.15,96513.0,96483.0,0.01454085]
[1739998065301,0.155446,96497.0,96488.0,0.155458]
[1739998065498,0.155448,96496.0,96488.0,0.155458]
[1739998065743,0.207252,96501.0,96488.0,0.155458]
[1739998065926,0.207228,96512.0,96485.0,0.01454085]
[1739998066132,0.155464,96485.0,96484.0,0.0798]
[1739998066503,0.155474,96479.0,96478.0,0.13]
[1739998067087,0.362767,96481.0,96478.0,0.13]
[1739998067294,0.155472,96481.0,96478.0,0.13]
[1739998067911,0.155472,96481.0,96478.0,0.132]
[1739998068115,0.156474,96479.0,96478.0,0.135]
[1739998068458,0.01629064,96485.0,96478.0,0.13]
[1739998068607,0.155472,96481.0,96478.0,0.13]
[1739998068811,0.155472,96481.0,96478.0,0.131]
[1739998069004,0.15547,96482.0,96478.0,0.131]
[1739998069214,0.01629064,96485.0,96478.0,0.131]
[1739998069423,0.155471,96481.0,96478.0,0.131]
[1739998069642,0.155472,96480.0,96478.0,0.133]
[1739998069835,0.155471,96481.0,96478.0,0.131]
[1739998070226,0.01629064,96485.0,96478.0,0.132]
[1739998070409,0.155469,96482.0,96478.0,0.132]
[1739998070584,0.155469,96482.0,96478.0,0.133]
[1739998070821,0.01629064,96485.0,96478.0,0.133]
[1739998071023,0.01629064,96485.0,96478.0,0.13]
[1739998071200,0.155469,96483.0,96478.0,0.131]
[1739998071407,0.001,96480.0,96478.0,0.132]
[1739998072040,0.001,96480.0,96478.0,0.131]
[1739998072592,0.15547,96482.0,96478.0,0.13]
[1739998072909,0.15547,96482.0,96478.0,0.132]
[1739998073105,0.207288,96484.0,96478.0,0.132]
[1739998073106,0.155467,96483.0,96478.0,0.132]
[1739998073316,0.01629064,96485.0,96478.0,0.133]
[1739998073520,0.207288,96484.0,96478.0,0.133]
[1739998073717,0.155468,96483.0,96478.0,0.13]
[1739998073988,0.155469,96482.0,96478.0,0.13]
[1739998074236,4.326e-05,96485.0,96478.0,0.132]
[1739998074463,4.326e-05,96485.0,96479.0,0.17001485]
[1739998074464,0.001,96480.0,96479.0,0.17001485]
[1739998074670,0.001,96480.0,96479.0,0.24701485]
[1739998076526,4.326e-05,96485.0,96479.0,0.24701485]
[1739998076737,4.326e-05,96485.0,96479.0,0.077]
[1739998077140,0.155471,96481.0,96479.0,0.077]
[1739998077440,0.155468,96483.0,96479.0,0.082]
[1739998077641,0.20733126,96485.0,96479.0,0.084]
[1739998077844,0.207289,96484.0,96479.0,0.084]
[1739998078062,0.155471,96481.0,96479.0,0.084]
[1739998078227,4.326e-05,96485.0,96479.0,0.084]
[1739998078228,0.155469,96482.0,96479.0,0.077]
[1739998078563,4.326e-05,96485.0,96479.0,0.08]
[1739998078766,0.15547,96482.0,96479.0,0.08]
[1739998078964,0.155471,96481.0,96479.0,0.08]
[1739998079169,0.155467,96483.0,96479.0,0.08]
[1739998079369,0.018016,96481.0,96479.0,0.08]
[1739998079526,0.155466,96484.0,96479.0,0.08]
[1739998079725,0.155466,96484.0,96479.0,0.077]
[1739998079912,0.155468,96483.0,96479.0,0.077]
[1739998080114,0.155468,96483.0,96479.0,0.081]
[1739998080322,4.326e-05,96485.0,96480.0,0.01454085]
[1739998080522,4.326e-05,96485.0,96484.0,0.232966]
[1739998080966,4.326e-05,96485.0,96484.0,0.24750685]
[1739998082171,4.326e-05,96485.0,96484.0,0.09204085]
[1739998082374,4.326e-05,96485.0,96484.0,0.24750685]
[1739998082774,4.326e-05,96485.0,96484.0,0.25050685]
[1739998083660,4.326e-05,96485.0,96484.0,0.0775]
[1739998084061,4.326e-05,96485.0,96484.0,0.0805]
[1739998084254,4.326e-05,96485.0,96484.0,0.0775]
[1739998084466,4.326e-05,96485.0,96484.0,0.0785]
[1739998084665,4.326e-05,96485.0,96484.0,0.0825]
[1739998085292,4.326e-05,96485.0,96484.0,0.236966]
[1739998085572,4.326e-05,96485.0,96484.0,0.25150685]
[1739998086779,4.326e-05,96485.0,96484.0,0.24750685]
[1739998087194,4.326e-05,96485.0,96484.0,0.29540685]
[1739998087365,4.326e-05,96485.0,96484.0,0.30140685]
[1739998087571,4.326e-05,96485.0,96484.0,0.29840685]
[1739998087964,0.00104326,96485.0,96484.0,0.30340685]
[1739998088769,4.326e-05,96485.0,96484.0,0.81530986]
[1739998088967,0.00104326,96485.0,96484.0,0.82130986]
[1739998089634,0.00104326,96485.0,96484.0,0.81830986]
[1739998090073,0.02417559,96516.0,96515.0,0.236316]
[1739998090279,0.02421892,96516.0,96515.0,0.25085685]
[1739998090899,0.02421892,96516.0,96515.0,0.09544085]
[1739998091316,0.02421892,96516.0,96515.0,0.10144085]
[1739998091485,0.02421892,96516.0,96515.0,0.09744085]
[1739998091684,0.02421892,96516.0,96515.0,0.10244085]
[1739998092112,0.02421892,96516.0,96515.0,0.25285685]
[1739998092491,0.02421892,96516.0,96515.0,0.250057]
[1739998092695,0.02421892,96516.0,96515.0,0.248057]
[1739998093250,0.02421892,96516.0,96515.0,0.250057]
[1739998093504,0.02421892,96516.0,96515.0,0.255057]
[1739998093703,0.02464422,96516.0,96515.0,0.253057]
[1739998093908,0.00840082,96516.0,96515.0,0.255057]
[1739998094038,0.00840082,96516.0,96515.0,0.099641]
[1739998094249,0.00840082,96516.0,96515.0,0.255057]
[1739998094443,0.00840082,96516.0,96515.0,0.099641]
[1739998094677,0.00840082,96516.0,96515.0,0.255057]
[1739998096465,0.00840082,96516.0,96515.0,0.099641]
[1739998096680,0.1853754,96516.0,96515.0,0.007]
[1739998096860,0.16381482,96516.0,96515.0,0.007]
[1739998097534,0.16381482,96516.0,96502.0,0.26439936]
[1739998097739,0.155435,96504.0,96502.0,0.26439936]
[1739998098367,0.207221,96515.0,96502.0,0.26439936]
[1739998098746,0.155431,96506.0,96502.0,0.26439936]
[1739998099208,0.155429,96507.0,96502.0,0.26439936]
[1739998100010,0.02464353,96516.0,96502.0,0.26439936]
[1739998100011,0.001,96504.0,96502.0,0.27139936]
[1739998100239,0.155428,96508.0,96502.0,0.26439936]
[1739998100436,0.207225,96514.0,96502.0,0.26739936]
[1739998100641,0.001,96507.0,96504.0,0.207245]
[1739998100868,0.001,96507.0,96506.0,0.16997085]
[1739998101363,0.02464353,96516.0,96513.0,0.155419]
[1739998101512,0.02464353,96516.0,96503.0,0.01454085]
[1739998101715,0.02464353,96516.0,96510.0,0.155423]
[1739998101937,0.02464353,96516.0,96502.0,0.003]
[1739998102138,0.155416,96515.0,96509.0,0.01454085]
[1739998102359,0.23186353,96516.0,96509.0,0.01454085]
[1739998102547,0.155417,96515.0,96509.0,0.01454085]
[1739998102925,0.02464353,96516.0,96507.0,0.01454085]
[1739998103188,0.001,96507.0,96506.0,0.006]
[1739998103409,0.001,96507.0,96506.0,0.01454085]
[1739998103618,0.02464353,96516.0,96507.0,0.01454085]
[1739998103818,0.155419,96514.0,96509.0,0.003]
[1739998104020,0.155424,96510.0,96509.0,0.01454085]
[1739998104198,0.00840082,96516.0,96509.0,0.01454085]
[1739998104406,0.155419,96514.0,96508.0,0.155427]
[1739998104911,0.155419,96514.0,96502.0,0.207249]
[1739998105063,0.155419,96514.0,96508.0,0.155426]
[1739998105679,0.155419,96514.0,96506.0,0.20724]
[1739998105899,0.155419,96514.0,96507.0,0.003]
[1739998106098,0.155419,96514.0,96508.0,0.155426]
[1739998106503,0.15542,96513.0,96507.0,0.01454085]
[1739998107022,0.15542,96513.0,96506.0,0.155429]
[1739998107023,0.155419,96514.0,96509.0,0.0008506]
[1739998107230,0.02464354,96516.0,96509.0,0.0008506]
[1739998107461,0.02464354,96516.0,96510.0,0.155423]
[1739998107656,0.155416,96515.0,96509.0,0.0008506]
[1739998108815,0.207221,96515.0,96509.0,0.0008506]
[1739998109022,0.155424,96510.0,96509.0,0.0008506]
[1739998110025,0.155424,96510.0,96509.0,0.0048506]
[1739998110232,0.155424,96510.0,96509.0,0.0068506]
[1739998110365,0.155424,96510.0,96509.0,0.0028506]
[1739998110779,0.155424,96510.0,96509.0,0.0078506]
[1739998114422,0.155424,96510.0,96509.0,0.0058506]
[1739998114580,0.157424,96510.0,96509.0,0.0008506]
[1739998114969,0.155424,96510.0,96509.0,0.0008506]
[1739998115396,0.157424,96510.0,96509.0,0.0008506]
[1739998115600,0.002,96510.0,96509.0,0.0008506]
[1739998116220,0.002,96510.0,96509.0,0.0028506]
[1739998116418,0.002,96510.0,96509.0,0.0008506]
[1739998116627,0.157424,96510.0,96509.0,0.0008506]
[1739998116798,0.002,96510.0,96509.0,0.0028506]
[1739998117001,0.01824308,96510.0,96509.0,0.17081645]
[1739998117200,0.01824308,96510.0,96509.0,0.29541645]
[1739998117569,0.01624308,96510.0,96509.0,0.29841645]
[1739998117759,0.01724308,96510.0,96509.0,0.29541645]
[1739998117958,0.01724308,96510.0,96509.0,0.29841645]
[1739998118156,0.01624308,96510.0,96509.0,0.29841645]
[1739998118500,0.01624308,96510.0,96509.0,0.29941645]
[1739998118947,0.01624308,96510.0,96509.0,0.29841645]
[1739998119326,0.01624308,96510.0,96509.0,0.29941645]
[1739998119730,0.01624308,96510.0,96509.0,0.29641645]
[1739998119903,0.01666838,96510.0,96509.0,0.29641645]
[1739998120123,0.01666838,96510.0,96509.0,0.30041645]
[1739998120330,0.01666838,96510.0,96509.0,0.29641645]
[1739998120528,0.01666838,96510.0,96509.0,0.30041645]
[1739998120734,0.17209238,96510.0,96509.0,0.0058506]
[1739998121590,0.00046863,96516.0,96509.0,0.0058506]
[1739998121830,0.155424,96510.0,96509.0,0.0058506]
[1739998122358,0.155424,96510.0,96509.0,0.0048506]
[1739998123016,0.155424,96510.0,96509.0,0.0008506]
[1739998124020,0.155424,96510.0,96509.0,0.0028506]
[1739998124216,0.155424,96510.0,96509.0,0.0008506]
[1739998124645,0.155424,96510.0,96509.0,0.0058506]
[1739998126080,0.155424,96510.0,96509.0,0.0018506]
[1739998126286,0.155424,96510.0,96509.0,0.0028506]
[1739998126661,0.155424,96510.0,96509.0,0.0008506]
[1739998126879,0.155424,96510.0,96509.0,0.0018506]
[1739998127091,0.157424,96510.0,96509.0,0.0018506]
[1739998132542,0.1578493,96510.0,96509.0,0.0018506]
[1739998134674,0.5384333,96510.0,96509.0,0.0018506]
[1739998134897,0.6452533,96510.0,96509.0,0.0018506]
[1739998135456,0.5596033,96510.0,96509.0,0.0018506]
[1739998135653,0.4483513,96510.0,96509.0,0.0018506]
[1739998136822,0.4860763,96510.0,96509.0,0.0018506]
[1739998141947,0.1578493,96510.0,96509.0,0.0018506]
[1739998142567,1.0588243,96510.0,96509.0,0.0018506]
[1739998142706,1.0375903,96510.0,96509.0,0.0018506]
[1739998142913,0.4421963,96510.0,96509.0,0.0018506]
[1739998144627,0.5171963,96510.0,96509.0,0.0018506]
[1739998145380,0.6671963,96510.0,96509.0,0.0018506]
[1739998145598,0.7152963,96510.0,96509.0,0.0018506]
[1739998146145,0.7152963,96510.0,96509.0,0.0008506]
[1739998146339,0.7132963,96510.0,96509.0,0.0008506]
[1739998146486,0.7192963,96510.0,96509.0,0.0018506]
[1739998146740,0.7262963,96510.0,96509.0,0.0028506]
[1739998146897,0.7262963,96510.0,96509.0,0.0018506]
[1739998146898,0.7202963,96510.0,96509.0,0.0018506]
[1739998147102,0.2129383,96510.0,96509.0,0.0018506]
[1739998147488,0.02367127,96510.0,96509.0,0.0018506]
[1739998147664,0.02367127,96510.0,96509.0,0.0774506]
[1739998148282,0.02967127,96510.0,96509.0,0.0784506]
[1739998148681,0.02267127,96510.0,96509.0,0.0774506]
[1739998149063,0.02967127,96510.0,96509.0,0.0784506]
[1739998149600,0.17809527,96510.0,96509.0,0.0784506]
[1739998149771,0.17409527,96510.0,96509.0,0.0764506]
[1739998149972,0.01867127,96510.0,96509.0,0.0764506]
[1739998150188,0.01867127,96510.0,96509.0,0.0774506]
[1739998150382,0.17409527,96510.0,96509.0,0.0774506]
[1739998151311,0.17409527,96510.0,96509.0,0.0764506]
[1739998151661,0.17209527,96510.0,96509.0,0.0774506]
[1739998151902,0.17409527,96510.0,96509.0,0.0764506]
[1739998152300,0.17209527,96510.0,96509.0,0.0774506]
[1739998152843,0.17409527,96510.0,96509.0,0.0774506]
[1739998153249,0.01867127,96510.0,96509.0,0.0774506]
[1739998153810,0.0024253,96510.0,96509.0,0.0774506]
[1739998154011,0.0024253,96510.0,96509.0,0.24741645]
[1739998154212,0.0024253,96510.0,96509.0,0.29271645]
[1739998154908,0.0024253,96510.0,96509.0,0.13729145]
[1739998154909,0.0004253,96510.0,96509.0,0.13729145]
[1739998155087,0.0004253,96510.0,96509.0,0.13629145]
[1739998155288,0.1578493,96510.0,96509.0,0.14029145]
[1739998155715,0.1558493,96510.0,96509.0,0.14029145]
[1739998156192,0.1558493,96510.0,96509.0,0.13629145]
[1739998156550,0.1558493,96510.0,96509.0,0.13929145]
[1739998156769,0.0004253,96510.0,96509.0,0.13929145]
[1739998156953,0.1558493,96510.0,96509.0,0.13929145]
[1739998157255,0.1558493,96510.0,96509.0,0.1247506]
[1739998157762,0.1558493,96510.0,96509.0,0.0794506]
[1739998158291,0.1558493,96510.0,96509.0,0.0008506]
[1739998158492,0.8381303,96510.0,96509.0,0.0038506]
[1739998158693,0.1558493,96510.0,96509.0,0.0038506]
[1739998158920,0.1558493,96510.0,96509.0,0.0008506]
[1739998159052,0.2741273,96510.0,96509.0,0.0008506]
[1739998159428,0.2741273,96510.0,96509.0,0.0028506]
[1739998159630,0.2761273,96510.0,96509.0,0.0008506]
[1739998159938,0.2761273,96510.0,96509.0,0.0018506]
[1739998160503,0.4261273,96510.0,96509.0,0.0018506]
[1739998160710,0.52863095,96510.0,96509.0,0.0018506]
[1739998160888,0.57793095,96510.0,96509.0,0.0018506]
[1739998161093,0.57593095,96510.0,96509.0,0.0018506]
[1739998161285,0.4734273,96510.0,96509.0,0.0008506]
[1739998161490,0.4784273,96510.0,96509.0,0.0008506]
[1739998161715,0.4804273,96510.0,96509.0,0.0008506]
[1739998161913,0.4734273,96510.0,96509.0,0.0008506]
[1739998162328,0.48822134,96510.0,96509.0,0.0018506]
[1739998163092,0.50867107,96510.0,96509.0,0.0018506]
[1739998168383,0.52491704,96510.0,96509.0,0.0018506]
[1739998169486,0.40663904,96510.0,96509.0,0.0018506]
[1739998169684,0.40663904,96510.0,96509.0,0.0517526]
[1739998169899,3.91652404,96510.0,96509.0,0.0517526]
[1739998170431,3.86722404,96510.0,96509.0,0.0517526]
[1739998170878,2.64853727,96510.0,96509.0,0.0517526]
[1739998171073,0.32909527,96510.0,96509.0,0.0517526]
[1739998173468,0.45093727,96510.0,96509.0,0.0517526]
[1739998173866,0.4346913,96510.0,96509.0,0.0517526]
[1739998177019,0.45093622,96510.0,96509.0,0.0517526]
[1739998178253,0.55343987,96510.0,96509.0,0.0517526]
[1739998178449,0.45093622,96510.0,96509.0,0.0517526]
[1739998179911,0.32909422,96510.0,96509.0,0.0517526]
[1739998180161,3.06450322,96510.0,96509.0,0.0517526]
[1739998180368,3.83897922,96510.0,96509.0,0.0517526]
[1739998180685,3.32798422,96510.0,96509.0,0.0517526]
[1739998181241,0.305458,96489.0,96488.0,0.079]
[1739998181672,0.32624999,96489.0,96488.0,0.079]
[1739998181844,0.34249694,96489.0,96488.0,0.079]
[1739998182827,0.34249694,96489.0,96488.0,0.08]
[1739998183846,0.32624999,96489.0,96488.0,0.08]
[1739998184733,0.32724999,96489.0,96488.0,0.08]
[1739998188373,0.03803894,96489.0,96488.0,0.08]
[1739998188714,0.19349694,96489.0,96488.0,0.08]
[1739998191842,0.19349694,96489.0,96488.0,0.080851]
[1739998192699,0.03803894,96489.0,96488.0,0.080851]
[1739998193185,0.02179199,96489.0,96488.0,0.080851]
[1739998194129,0.001,96489.0,96488.0,0.23631]
[1739998194337,0.001,96489.0,96488.0,0.29855085]
[1739998194918,0.02085878,96502.0,96491.0,0.207271]
[1739998195144,0.17629678,96502.0,96493.0,0.155451]
[1739998195350,0.155438,96502.0,96494.0,0.23355]
[1739998195528,0.155438,96502.0,96494.0,0.0781]
[1739998195926,0.02065394,96502.0,96497.0,0.155445]
[1739998196149,0.0004253,96510.0,96496.0,0.155446]
[1739998196345,0.155433,96505.0,96497.0,0.0829]
[1739998196500,0.01624428,96504.0,96497.0,0.0829]
[1739998196699,0.03698221,96504.0,96497.0,0.0829]
[1739998196928,0.03698221,96504.0,96497.0,0.0819]
[1739998197795,0.03798221,96504.0,96497.0,0.237344]
[1739998197991,0.03798221,96504.0,96497.0,0.238344]
[1739998198568,0.03798221,96504.0,96497.0,0.0829]
[1739998198770,0.19341621,96504.0,96497.0,0.0829]
[1739998199194,0.03798221,96504.0,96498.0,0.155443]
[1739998199399,0.19341621,96504.0,96497.0,0.0829]
[1739998199734,0.03798221,96504.0,96497.0,0.238344]
[1739998200081,0.03698221,96504.0,96497.0,0.238344]
[1739998200289,0.01624428,96504.0,96503.0,0.155435]
[1739998200493,0.0004253,96510.0,96509.0,0.285725]
[1739998200769,0.0004254,96539.0,96509.0,0.285725]
[1739998200770,0.01624253,96527.0,96515.0,0.14224085]
[1739998200978,0.0004254,96539.0,96526.0,0.37531846]
[1739998201185,0.0004254,96539.0,96538.0,0.44761985]
[1739998201388,0.0004254,96539.0,96538.0,0.76803045]
[1739998201595,0.0004254,96539.0,96538.0,0.8705341]
[1739998201800,0.0004254,96539.0,96538.0,0.8695341]
[1739998202244,0.0008524,96568.0,96539.0,0.18454085]
[1739998202451,0.0008524,96568.0,96539.0,0.3499445]
[1739998202658,0.0008524,96568.0,96539.0,0.1999445]
[1739998202870,0.0008524,96568.0,96539.0,0.09744085]
[1739998203096,0.0008524,96568.0,96539.0,0.1999445]
[1739998204269,0.0014253,96540.0,96539.0,0.1999445]
[1739998204444,0.0024253,96540.0,96539.0,0.2069445]
[1739998204648,0.0004253,96540.0,96539.0,0.1999445]
[1739998205102,0.0014253,96540.0,96539.0,0.1999445]
[1739998205880,0.0014253,96540.0,96539.0,0.46434386]
[1739998206078,0.0024253,96540.0,96539.0,0.47134386]
[1739998207554,0.0024253,96540.0,96539.0,0.62672086]
[1739998208083,0.0014253,96540.0,96539.0,0.62672086]
[1739998208963,0.0004253,96540.0,96539.0,0.61972086]
[1739998209350,0.0014253,96540.0,96539.0,0.62672086]
[1739998209555,0.0024253,96540.0,96539.0,0.62672086]
[1739998209994,0.0014253,96540.0,96539.0,0.62672086]
[1739998210321,0.0004253,96540.0,96539.0,0.61972086]
[1739998210499,0.0014253,96540.0,96539.0,0.62672086]
[1739998210649,0.0004253,96540.0,96539.0,0.61972086]
[1739998210856,0.0014253,96540.0,96539.0,0.61972086]
[1739998211075,0.0024253,96540.0,96539.0,0.62672086]
[1739998211256,0.0014253,96540.0,96539.0,0.62672086]
[1739998212257,0.0004253,96540.0,96539.0,0.61972086]
[1739998212670,0.0024253,96540.0,96539.0,0.62672086]
[1739998212895,0.0024253,96540.0,96539.0,0.61972086]
[1739998213270,0.0024253,96540.0,96539.0,0.62672086]
[1739998213475,0.0014253,96540.0,96539.0,0.61972086]
[1739998213875,0.0024253,96540.0,96539.0,0.62672086]
[1739998214125,0.0024253,96540.0,96539.0,0.61972086]
[1739998215186,0.0014253,96540.0,96539.0,0.61972086]
[1739998215392,0.0024253,96540.0,96539.0,0.63436086]
[1739998216026,0.0024253,96540.0,96539.0,0.50967636]
[1739998216231,0.0004253,96540.0,96539.0,0.50267636]
[1739998216611,0.0014253,96540.0,96539.0,0.50967636]
[1739998217165,0.0024253,96540.0,96539.0,0.52421721]
[1739998217364,0.0014253,96540.0,96539.0,0.51721721]
[1739998217570,0.0004253,96540.0,96539.0,0.51721721]
[1739998217930,0.0014253,96540.0,96539.0,0.51721721]
[1739998218350,0.0004253,96540.0,96539.0,0.51721721]
[1739998218673,0.0014253,96540.0,96539.0,0.52421721]
[1739998219073,0.0004253,96540.0,96539.0,0.51721721]
[1739998219280,0.0014253,96540.0,96539.0,0.52421721]
[1739998220026,0.0024253,96540.0,96539.0,0.52421721]
[1739998221504,0.0024253,96540.0,96539.0,0.28594021]
[1739998221721,0.0024253,96540.0,96539.0,0.44131721]
[1739998222356,0.0024253,96540.0,96539.0,0.28594021]
[1739998222561,0.0024253,96540.0,96539.0,0.007]
[1739998222965,0.0014253,96540.0,96539.0,0.007]
[1739998223172,0.0014253,96540.0,96530.0,0.22172885]
[1739998223173,0.0004253,96540.0,96530.0,0.155391]
[1739998223383,0.0024253,96540.0,96539.0,0.007]
[1739998223599,0.0024253,96540.0,96534.0,0.155385]
[1739998223754,0.0014253,96540.0,96525.0,0.0462]
[1739998223961,0.155383,96536.0,96515.0,0.0752]
[1739998224168,0.01987966,96540.0,96521.0,0.41980436]
[1739998224386,0.155396,96527.0,96515.0,0.0752]
[1739998224587,0.155396,96527.0,96509.0,0.207232]
[1739998224882,0.207193,96529.0,96510.0,0.20723]
[1739998225073,0.155396,96527.0,96507.0,0.207237]
[1739998225277,0.155396,96527.0,96506.0,0.08558]
[1739998225484,0.155396,96527.0,96510.0,0.155424]
[1739998225686,0.155396,96527.0,96514.0,0.155417]
[1739998225973,0.155396,96527.0,96506.0,0.08558]
[1739998226174,0.155396,96527.0,96505.0,0.26439936]
[1739998226175,0.155396,96527.0,96526.0,0.0028508]
[1739998226377,0.155396,96527.0,96526.0,0.0008508]
[1739998226659,0.155396,96527.0,96526.0,0.0038508]
[1739998226949,0.155396,96527.0,96526.0,0.0008508]
[1739998227367,0.001,96527.0,96526.0,0.0008508]
[1739998227574,0.156396,96527.0,96526.0,0.0008508]
[1739998227781,0.155396,96527.0,96526.0,0.0008508]
[1739998228187,0.156396,96527.0,96526.0,0.0008508]
[1739998228393,0.156396,96527.0,96526.0,0.0018508]
[1739998228609,0.156396,96527.0,96526.0,0.0008508]
[1739998228755,0.156396,96527.0,96526.0,0.0018508]
[1739998229354,0.001,96527.0,96526.0,0.0018508]
[1739998230182,0.156396,96527.0,96526.0,0.0018508]
[1739998231454,0.001,96527.0,96526.0,0.0018508]
[1739998231894,0.156396,96527.0,96526.0,0.0018508]
[1739998232036,0.16541722,96527.0,96526.0,0.0018508]
[1739998232428,0.01002122,96527.0,96526.0,0.0018508]
[1739998233250,0.00902122,96527.0,96526.0,0.0018508]
[1739998233453,0.00902122,96527.0,96526.0,0.1572488]
[1739998233682,0.001,96527.0,96526.0,0.1562488]
[1739998234042,0.01825315,96541.0,96526.0,0.0008508]
[1739998234436,0.207151,96548.0,96526.0,0.0008508]
[1739998234437,0.15,96543.0,96526.0,0.0008508]
[1739998234641,0.00098097,96551.0,96526.0,0.0008508]
[1739998234642,0.15,96550.0,96526.0,0.0008508]
[1739998234862,0.155396,96527.0,96526.0,0.0008508]
[1739998235075,0.155396,96528.0,96526.0,0.0008508]
[1739998235230,0.00751507,96527.0,96526.0,0.0008508]
[1739998235675,0.31291107,96527.0,96526.0,0.0008508]
[1739998235836,0.31291107,96527.0,96526.0,0.0018508]
[1739998236038,0.15751507,96527.0,96526.0,0.0018508]
[1739998236214,0.00751507,96527.0,96526.0,0.1572488]